lending/lending_fUSD_20240512
["ID","MTS","AMOUNT","RATE_DAILY","PERIOD"]
[326863472,1715523040274,-563.56,0.00012373,2]
[326863473,1715523040291,-1369.64,0.00012373,2]
[326863474,1715523040306,-1175.89,0.00012373,2]
[326863475,1715523040319,-500.0,0.00012373,2]
[326863476,1715523040334,-500.0,0.00012373,2]
[326863477,1715523040348,-500.0,0.00012373,2]
[326863478,1715523040363,-818.05,0.00012373,2]
[326863479,1715523040378,-500.0,0.00012373,2]
[326863480,1715523040392,-500.0,0.00012373,2]
[326863481,1715523040408,-1575.67,0.00012373,2]
[326863484,1715523040422,-812.76,0.00012373,2]
[326863486,1715523040436,-200.62527656,0.00012373,2]
[326863488,1715523040451,-500.0,0.00012373,2]
[326863490,1715523040466,-500.0,0.00012373,2]
[326863491,1715523040480,-500.0,0.00012373,2]
[326863492,1715523040493,-500.0,0.00012373,2]
[326863493,1715523040505,-500.0,0.00012373,2]
[326863494,1715523040517,-821.06,0.00012373,2]
[326863495,1715523040529,-500.0,0.00012373,2]
[326863496,1715523040542,-752.52,0.00012373,2]
[326863497,1715523040557,-561.78,0.00012373,2]
[326863498,1715523040571,-1168.59,0.00012373,2]
[326863499,1715523040586,-500.0,0.00012373,2]
[326863500,1715523040600,-500.0,0.00012373,2]
[326863501,1715523040615,-719.51,0.00012373,2]
[326863502,1715523040627,-500.0,0.00012373,2]
[326863503,1715523040638,-507.36,0.00012373,2]
[326863504,1715523040649,-551.64125746,0.00012373,2]
[326863505,1715523040662,-541.28,0.00012373,2]
[326863506,1715523040676,-399.14345398,0.00012373,2]
[326863507,1715523040689,-618.09,0.00012373,2]
[326863508,1715523040701,-364.342827,0.00012373,2]
[326863509,1715523040714,-500.0,0.00012373,2]
[326863510,1715523040732,-616.73,0.00012373,2]
[326863511,1715523040743,-518.71105039,0.00012373,2]
[326863512,1715523040754,-500.0,0.00012373,2]
[326863513,1715523040766,-505.98,0.00012373,2]
[326863514,1715523040778,-1412.84,0.00012373,2]
[326863515,1715523040790,-500.0,0.00012373,2]
[326863516,1715523040803,-850.21608695,0.00012373,2]
[326863517,1715523040816,-1315.62,0.00012373,2]
[326863518,1715523040831,-532.07,0.00012373,2]
[326863519,1715523040846,-1767.54,0.00012373,2]
[326863520,1715523040883,-500.0,0.00012373,2]
[326863521,1715523040897,-597.16,0.00012373,2]
[326863522,1715523040912,-565.93,0.00012373,2]
[326863523,1715523040926,-500.0,0.00012373,2]
[326863524,1715523040940,-824.53,0.00012373,2]
[326863525,1715523040953,-500.0,0.00012373,2]
[326863526,1715523040967,-890.03,0.00012373,2]
[326863527,1715523040980,-500.0,0.00012373,2]
[326863528,1715523040994,-500.0,0.00012373,2]
[326863529,1715523041007,-500.0,0.00012373,2]
[326863530,1715523041021,-1922.26,0.00012373,2]
[326863531,1715523041033,-600.18,0.00012373,2]
[326863532,1715523041046,-1970.14,0.00012373,2]
[326863533,1715523041059,-723.81,0.00012373,2]
[326863534,1715523041070,-500.0,0.00012373,2]
[326863535,1715523041083,-501.34,0.00012373,2]
[326863536,1715523041096,-500.0,0.00012373,2]
[326863537,1715523041109,-500.0,0.00012373,2]
[326863538,1715523041121,-500.0,0.00012373,2]
[326863539,1715523041134,-527.71570061,0.00012373,2]
[326863540,1715523041146,-2381.7,0.00012373,2]
[326863541,1715523041159,-500.0,0.00012373,2]
[326863542,1715523041171,-500.0,0.00012373,2]
[326863543,1715523041184,-500.0,0.00012373,2]
[326863544,1715523041199,-524.65,0.00012373,2]
[326863545,1715523041212,-623.68,0.00012373,2]
[326863546,1715523041224,-2874.98,0.00012373,2]
[326863547,1715523041239,-526.21061371,0.00012373,2]
[326863548,1715523041251,-500.0,0.00012373,2]
[326863549,1715523041264,-500.0,0.00012373,2]
[326863550,1715523041279,-1825.2,0.00012373,2]
[326863551,1715523041291,-500.0,0.00012373,2]
[326863552,1715523041303,-511.11,0.00012373,2]
[326863553,1715523041315,-744.62,0.00012373,2]
[326863554,1715523041327,-505.37,0.00012373,2]
[326863555,1715523041340,-500.0,0.00012373,2]
[326863556,1715523041352,-509.82965471,0.00012373,2]
[326863557,1715523041364,-841.39,0.00012373,2]
[326863558,1715523041377,-2570.99,0.00012373,2]
[326863559,1715523041389,-500.0,0.00012373,2]
[326863560,1715523041401,-721.08,0.00012373,2]
[326863561,1715523041413,-530.19708322,0.00012373,2]
[326863562,1715523041425,-500.0,0.00012373,2]
[326863563,1715523041437,-500.0,0.00012373,2]
[326863564,1715523041449,-1108.92,0.00012373,2]
[326863565,1715523041461,-500.0,0.00012373,2]
[326863566,1715523041473,-2674.47,0.00012373,2]
[326863567,1715523041484,-812.53,0.00012373,2]
[326863568,1715523041497,-500.0,0.00012373,2]
[326863569,1715523041509,-516.86028296,0.00012373,2]
[326863570,1715523041521,-607.77,0.00012373,2]
[326863571,1715523041532,-668.25,0.00012373,2]
[326863572,1715523041544,-1126.26,0.00012373,2]
[326863573,1715523041555,-763.94,0.00012373,2]
[326863574,1715523041568,-500.0,0.00012373,2]
[326863575,1715523041580,-500.0,0.00012373,2]
[326863576,1715523041592,-500.0,0.00012373,2]
[326863577,1715523041604,-2817.75,0.00012373,2]
[326863578,1715523041615,-500.0,0.00012373,2]
[326863579,1715523041627,-5104.17,0.00012373,2]
[326863580,1715523041638,-500.0,0.00012373,2]
[326863581,1715523041650,-500.0,0.00012373,2]
[326863582,1715523041662,-884.19,0.00012373,2]
[326863583,1715523041673,-500.0,0.00012373,2]
[326863584,1715523041685,-775.95,0.00012373,2]
[326863585,1715523041697,-500.0,0.00012373,2]
[326863586,1715523041709,-500.0,0.00012373,2]
[326863587,1715523041720,-1732.28,0.00012373,2]
[326863588,1715523041732,-2095.89,0.00012373,2]
[326863589,1715523041744,-500.0,0.00012373,2]
[326863590,1715523041755,-500.0,0.00012373,2]
[326863591,1715523041768,-2035.47,0.00012373,2]
[326863592,1715523041779,-624.25,0.00012373,2]
[326863593,1715523041791,-978.93,0.00012373,2]
[326863594,1715523041802,-912.82,0.00012373,2]
[326863595,1715523041814,-13978.47,0.00012373,2]
[326863596,1715523041826,-500.0,0.00012373,2]
[326863597,1715523041837,-556.19,0.00012373,2]
[326863598,1715523041849,-500.0,0.00012373,2]
[326863599,1715523041861,-500.0,0.00012373,2]
[326863600,1715523041873,-1299.99,0.00012373,2]
[326863601,1715523041885,-10100.6,0.00012373,2]
[326863602,1715523041896,-952.21,0.00012373,2]
[326863603,1715523041907,-500.0,0.00012373,2]
[326863604,1715523041920,-1250.64,0.00012373,2]
[326863605,1715523041932,-633.52,0.00012373,2]
[326863606,1715523041945,-633.52,0.00012373,2]
[326863607,1715523041957,-500.0,0.00012373,2]
[326863608,1715523041969,-500.0,0.00012373,2]
[326863609,1715523041980,-1156.72,0.00012373,2]
[326863610,1715523041992,-3349.05,0.00012373,2]
[326863611,1715523042003,-500.0,0.00012373,2]
[326863612,1715523042015,-917.04,0.00012373,2]
[326863613,1715523042029,-500.0,0.00012373,2]
[326863614,1715523042042,-500.0,0.00012373,2]
[326863615,1715523042054,-500.0,0.00012373,2]
[326863616,1715523042066,-500.0,0.00012373,2]
[326863617,1715523042079,-27613.48,0.00012373,2]
[326863618,1715523042091,-27613.48,0.00012373,2]
[326863619,1715523042103,-500.0,0.00012373,2]
[326863620,1715523042115,-515.25285963,0.00012373,2]
[326863621,1715523042127,-1569.0,0.00012373,2]
[326863622,1715523042139,-915.12,0.00012373,2]
[326863623,1715523042151,-993.9,0.00012373,2]
[326863624,1715523042162,-1792.21,0.00012373,2]
[326863625,1715523042174,-558.72,0.00012373,2]
[326863626,1715523042186,-509.05241031,0.00012373,2]
[326863627,1715523042202,-1423.64,0.00012373,2]
[326863628,1715523042213,-1423.64,0.00012373,2]
[326863629,1715523042225,-528.16,0.00012373,2]
[326863630,1715523042239,-500.0,0.00012373,2]
[326863631,1715523042251,-500.0,0.00012373,2]
[326863632,1715523042263,-863.6,0.00012373,2]
[326863633,1715523042276,-500.0,0.00012373,2]
[326863634,1715523042289,-723.19,0.00012373,2]
[326863635,1715523042300,-2051.54,0.00012373,2]
[326863636,1715523042312,-500.0,0.00012373,2]
[326863637,1715523042323,-1933.68,0.00012373,2]
[326863638,1715523042337,-500.0,0.00012373,2]
[326863639,1715523042349,-500.0,0.00012373,2]
[326863640,1715523042361,-734.3,0.00012373,2]
[326863641,1715523042374,-534.33,0.00012373,2]
[326863642,1715523042385,-500.0,0.00012373,2]
[326863643,1715523042396,-3768.92,0.00012373,2]
[326863644,1715523042408,-3113.06,0.00012373,2]
[326863645,1715523042421,-500.0,0.00012373,2]
[326863646,1715523042432,-608.93129614,0.00012373,2]
[326863647,1715523042445,-500.0,0.00012373,2]
[326863648,1715523042456,-500.0,0.00012373,2]
[326863649,1715523042468,-500.0,0.00012373,2]
[326863650,1715523042480,-500.0,0.00012373,2]
[326863651,1715523042493,-2505.54,0.00012373,2]
[326863652,1715523042506,-500.0,0.00012373,2]
[326863653,1715523042518,-500.0,0.00012373,2]
[326863654,1715523042530,-543.56,0.00012373,2]
[326863655,1715523042542,-500.0,0.00012373,2]
[326863656,1715523042553,-500.0,0.00012373,2]
[326863657,1715523042565,-2536.02,0.00012373,2]
[326863658,1715523042577,-2536.02,0.00012373,2]
[326863659,1715523042589,-2263.71,0.00012373,2]
[326863660,1715523042601,-500.0,0.00012373,2]
[326863661,1715523042612,-3773.55,0.00012373,2]
[326863662,1715523042625,-766.02,0.00012373,2]
[326863663,1715523042636,-500.0,0.00012373,2]
[326863664,1715523042648,-500.0,0.00012373,2]
[326863665,1715523042659,-500.0,0.00012373,2]
[326863666,1715523042671,-5760.54,0.00012373,2]
[326863667,1715523042682,-500.0,0.00012373,2]
[326863668,1715523042694,-5464.16,0.00012373,2]
[326863669,1715523042705,-500.0,0.00012373,2]
[326863670,1715523042717,-500.0,0.00012373,2]
[326863671,1715523042729,-500.0,0.00012373,2]
[326863672,1715523042741,-500.0,0.00012373,2]
[326863673,1715523042752,-500.0,0.00012373,2]
[326863674,1715523042763,-1308.7,0.00012373,2]
[326863675,1715523042776,-500.0,0.00012373,2]
[326863676,1715523042787,-500.0,0.00012373,2]
[326863677,1715523042799,-1582.24,0.00012373,2]
[326863678,1715523042810,-1582.24,0.00012373,2]
[326863679,1715523042821,-2133.34,0.00012373,2]
[326863680,1715523042832,-3667.33,0.00012373,2]
[326863681,1715523042844,-500.0,0.00012373,2]
[326863682,1715523042855,-500.0,0.00012373,2]
[326863683,1715523042866,-9924.61,0.00012373,2]
[326863684,1715523042878,-664.07,0.00012373,2]
[326863686,1715523042889,-529.9474768,0.00012373,2]
[326863688,1715523042900,-714.86,0.00012373,2]
[326863691,1715523042912,-500.0,0.00012373,2]
[326863696,1715523042923,-2275.35,0.00012373,2]
[326863699,1715523042934,-5905.14,0.00012373,2]
[326863701,1715523042945,-1219.53,0.00012373,2]
[326863703,1715523042956,-1977.06,0.00012373,2]
[326863705,1715523042967,-1626.96,0.00012373,2]
[326863706,1715523042978,-1626.96,0.00012373,2]
[326863707,1715523042989,-803.5,0.00012373,2]
[326863708,1715523042999,-1221.6,0.00012373,2]
[326863709,1715523043011,-1534.51,0.00012373,2]
[326863710,1715523043021,-1221.6,0.00012373,2]
[326863711,1715523043033,-1556.41,0.00012373,2]
[326863712,1715523043044,-500.0,0.00012373,2]
[326863713,1715523043055,-3545.03,0.00012373,2]
[326863714,1715523043066,-690.36,0.00012373,2]
[326863715,1715523043077,-7626.02,0.00012373,2]
[326863716,1715523043090,-500.0,0.00012373,2]
[326863717,1715523043100,-1151.96,0.00012373,2]
[326863718,1715523043111,-2960.88,0.00012373,2]
[326863719,1715523043123,-1124.19,0.00012373,2]
[326863720,1715523043133,-1483.05,0.00012373,2]
[326863721,1715523043145,-2960.88,0.00012373,2]
[326863722,1715523043157,-1483.05,0.00012373,2]
[326863723,1715523043170,-1093.5,0.00012373,2]
[326863724,1715523043181,-18295.23,0.00012373,2]
[326863725,1715523043193,-500.0,0.00012373,2]
[326863726,1715523043207,-1083.17,0.00012373,2]
[326863727,1715523043218,-500.0,0.00012373,2]
[326863728,1715523043229,-2745.37,0.00012373,2]
[326863729,1715523043241,-500.0,0.00012373,2]
[326863730,1715523043252,-577.87,0.00012373,2]
[326863731,1715523043263,-577.87,0.00012373,2]
[326863732,1715523043276,-668.21,0.00012373,2]
[326863733,1715523043288,-530.41,0.00012373,2]
[326863734,1715523043299,-671.49,0.00012373,2]
[326863735,1715523043311,-945.87,0.00012373,2]
[326863736,1715523043322,-945.87,0.00012373,2]
[326863737,1715523043333,-1736.49,0.00012373,2]
[326863738,1715523043344,-500.0,0.00012373,2]
[326863739,1715523043355,-545.6,0.00012373,2]
[326863740,1715523043366,-500.0,0.00012373,2]
[326863741,1715523043378,-500.0,0.00012373,2]
[326863742,1715523043389,-2301.89,0.00012373,2]
[326863743,1715523043400,-500.0,0.00012373,2]
[326863744,1715523043412,-497.23027659,0.00012373,2]
[326863746,1715523043422,-2077.78,0.00012373,2]
[326863762,1715523043432,-2077.78,0.00012373,2]
[326863763,1715523043920,-1054.38,0.00012373,2]
[326863764,1715523043947,-500.0,0.00012373,2]
[326863765,1715523043958,-500.0,0.00012373,2]
[326863766,1715523043968,-500.0,0.00012373,2]
[326863767,1715523043977,-500.0,0.00012373,2]
[326863768,1715523043988,-500.0,0.00012373,2]
[326863769,1715523043999,-710.92,0.00012373,2]
[326863770,1715523044009,-3979.93,0.00012373,2]
[326863771,1715523044019,-710.92,0.00012373,2]
[326863772,1715523044030,-500.0,0.00012373,2]
[326863773,1715523044039,-1038.71,0.00012373,2]
[326863774,1715523044049,-500.0,0.00012373,2]
[326863775,1715523044058,-500.0,0.00012373,2]
[326863776,1715523044067,-500.0,0.00012373,2]
[326863777,1715523044076,-633.58,0.00012373,2]
[326863778,1715523044086,-500.0,0.00012373,2]
[326863779,1715523044095,-2756.29,0.00012373,2]
[326863780,1715523044105,-500.0,0.00012373,2]
[326863781,1715523044114,-1747.49,0.00012373,2]
[326863782,1715523044124,-606.23967928,0.00012373,2]
[326863783,1715523044134,-2037.99,0.00012373,2]
[326863784,1715523044143,-500.0,0.00012373,2]
[326863785,1715523044152,-1006.39,0.00012373,2]
[326863786,1715523044161,-1006.39,0.00012373,2]
[326863787,1715523044170,-508.42127304,0.00012373,2]
[326863788,1715523044180,-501.58,0.00012373,2]
[326863789,1715523044189,-500.0,0.00012373,2]
[326863790,1715523044202,-1839.61,0.00012373,2]
[326863791,1715523044212,-500.0,0.00012373,2]
[326863792,1715523044221,-998.57,0.00012373,2]
[326863793,1715523044230,-998.57,0.00012373,2]
[326863794,1715523044241,-500.0,0.00012373,2]
[326863795,1715523044250,-1439.61,0.00012373,2]
[326863796,1715523044260,-506.74565938,0.00012373,2]
[326863797,1715523044269,-506.27512355,0.00012373,2]
[326863798,1715523044281,-821.8,0.00012373,2]
[326863799,1715523044291,-821.8,0.00012373,2]
[326863800,1715523044300,-500.0,0.00012373,2]
[326863801,1715523044309,-500.0,0.00012373,2]
[326863802,1715523044318,-1153.11,0.00012373,2]
[326863803,1715523044328,-1381.29,0.00012373,2]
[326863804,1715523044337,-500.0,0.00012373,2]
[326863805,1715523044346,-500.0,0.00012373,2]
[326863806,1715523044356,-7564.94,0.00012373,2]
[326863807,1715523044365,-500.0,0.00012373,2]
[326863808,1715523044375,-500.0,0.00012373,2]
[326863809,1715523044384,-500.0,0.00012373,2]
[326863810,1715523044393,-4023.25,0.00012373,2]
[326863811,1715523044403,-500.0,0.00012373,2]
[326863812,1715523044412,-839.82,0.00012373,2]
[326863813,1715523044421,-2872.67,0.00012373,2]
[326863814,1715523044431,-2872.67,0.00012373,2]
[326863815,1715523044440,-1182.99,0.00012373,2]
[326863816,1715523044449,-500.0,0.00012373,2]
[326863817,1715523044458,-1182.99,0.00012373,2]
[326863818,1715523044468,-500.0,0.00012373,2]
[326863819,1715523044476,-650.83,0.00012373,2]
[326863820,1715523044486,-509.91805801,0.00012373,2]
[326863821,1715523044494,-500.0,0.00012373,2]
[326863822,1715523044503,-1919.16,0.00012373,2]
[326863823,1715523044512,-1919.16,0.00012373,2]
[326863824,1715523044522,-3305.86,0.00012373,2]
[326863825,1715523044531,-1555.38,0.00012373,2]
[326863826,1715523044540,-500.0,0.00012373,2]
[326863827,1715523044549,-1790.69,0.00012373,2]
[326863828,1715523044558,-1347.48,0.00012373,2]
[326863829,1715523044567,-1366.87,0.00012373,2]
[326863830,1715523044576,-500.0,0.00012373,2]
[326863831,1715523044585,-2219.6,0.00012373,2]
[326863832,1715523044594,-1366.87,0.00012373,2]
[326863833,1715523044604,-36067.49,0.00012373,2]
[326863834,1715523044613,-2219.6,0.00012373,2]
[326863835,1715523044623,-500.0,0.00012373,2]
[326863836,1715523044633,-500.0,0.00012373,2]
[326863837,1715523044642,-500.0,0.00012373,2]
[326863838,1715523044652,-500.0,0.00012373,2]
[326863839,1715523044662,-500.0,0.00012373,2]
[326863840,1715523044671,-4987.17,0.00012373,2]
[326863841,1715523044680,-500.0,0.00012373,2]
[326863842,1715523044690,-500.0,0.00012373,2]
[326863843,1715523044700,-500.0,0.00012373,2]
[326863844,1715523044709,-528.79100783,0.00012373,2]
[326863845,1715523044718,-500.0,0.00012373,2]
[326863846,1715523044727,-1750.2,0.00012373,2]
[326863847,1715523044736,-1750.2,0.00012373,2]
[326863848,1715523044745,-1283.39,0.00012373,2]
[326863849,1715523044755,-500.0,0.00012373,2]
[326863850,1715523044764,-859.63,0.00012373,2]
[326863851,1715523044773,-4385.56,0.00012373,2]
[326863852,1715523044782,-576.12,0.00012373,2]
[326863853,1715523044791,-1516.43,0.00012373,2]
[326863854,1715523044800,-500.0,0.00012373,2]
[326863855,1715523044810,-1516.43,0.00012373,2]
[326863856,1715523044819,-500.0,0.00012373,2]
[326863857,1715523044828,-1187.4,0.00012373,2]
[326863858,1715523044838,-1011.22,0.00012373,2]
[326863859,1715523044847,-416.90228149,0.00012373,2]
[326863860,1715523044856,-1011.22,0.00012373,2]
[326863861,1715523044865,-1650.45,0.00012373,2]
[326863862,1715523044875,-1650.45,0.00012373,2]
[326863863,1715523044885,-2748.28,0.00012373,2]
[326863864,1715523044895,-2113.07,0.00012373,2]
[326863865,1715523044904,-4956.23,0.00012373,2]
[326863866,1715523044913,-3260.26,0.00012373,2]
[326863867,1715523044922,-1111.17,0.00012373,2]
[326863868,1715523044931,-500.0,0.00012373,2]
[326863869,1715523044940,-500.0,0.00012373,2]
[326863870,1715523044949,-500.0,0.00012373,2]
[326863871,1715523044958,-500.0,0.00012373,2]
[326863872,1715523044967,-1285.75,0.00012373,2]
[326863873,1715523044976,-6923.97,0.00012373,2]
[326863874,1715523044985,-6923.97,0.00012373,2]
[326863875,1715523044994,-500.0,0.00012373,2]
[326863876,1715523045003,-2863.29,0.00012373,2]
[326863877,1715523045012,-8270.74,0.00012373,2]
[326863878,1715523045021,-3422.02,0.00012373,2]
[326863879,1715523045030,-8270.74,0.00012373,2]
[326863880,1715523045039,-1442.04,0.00012373,2]
[326863881,1715523045048,-500.0,0.00012373,2]
[326863882,1715523045057,-500.0,0.00012373,2]
[326863883,1715523045066,-500.0,0.00012373,2]
[326863884,1715523045076,-729.78,0.00012373,2]
[326863885,1715523045086,-729.78,0.00012373,2]
[326863886,1715523045095,-500.0,0.00012373,2]
[326863887,1715523045105,-500.0,0.00012373,2]
[326863888,1715523045114,-500.0,0.00012373,2]
[326863889,1715523045123,-832.34,0.00012373,2]
[326863890,1715523045132,-500.0,0.00012373,2]
[326863891,1715523045143,-500.0,0.00012373,2]
[326863892,1715523045153,-500.0,0.00012373,2]
[326863893,1715523045162,-10803.54,0.00012373,2]
[326863894,1715523045171,-500.0,0.00012373,2]
[326863895,1715523045182,-12151.2,0.00012373,2]
[326863896,1715523045191,-240.674293,0.00012373,2]
[326863897,1715523045204,-12151.2,0.00012373,2]
[326863898,1715523045213,-2551.71,0.00012373,2]
[326863899,1715523045222,-500.0,0.00012373,2]
[326863900,1715523045231,-500.0,0.00012373,2]
[326863901,1715523045242,-10736.21,0.00012373,2]
[326863902,1715523045251,-517.99371945,0.00012373,2]
[326863903,1715523045261,-500.0,0.00012373,2]
[326863904,1715523045270,-520.32397371,0.00012373,2]
[326863905,1715523045282,-850.19,0.00012373,2]
[326863906,1715523045292,-811.51,0.00012373,2]
[326863907,1715523045301,-850.19,0.00012373,2]
[326863908,1715523045311,-811.51,0.00012373,2]
[326863909,1715523045320,-2506.4,0.00012373,2]
[326863910,1715523045330,-500.0,0.00012373,2]
[326863911,1715523045339,-500.0,0.00012373,2]
[326863912,1715523045348,-500.0,0.00012373,2]
[326863913,1715523045357,-2835.3,0.00012373,2]
[326863914,1715523045366,-500.0,0.00012373,2]
[326863915,1715523045376,-500.0,0.00012373,2]
[326863916,1715523045386,-1636.87,0.00012373,2]
[326863917,1715523045395,-500.0,0.00012373,2]
[326863918,1715523045404,-5323.59,0.00012373,2]
[326863919,1715523045414,-500.0,0.00012373,2]
[326863920,1715523045423,-1556.15,0.00012373,2]
[326863921,1715523045433,-12304.58,0.00012373,2]
[326863922,1715523045442,-12304.58,0.00012373,2]
[326863923,1715523045451,-500.0,0.00012373,2]
[326863924,1715523045461,-696.15,0.00012373,2]
[326863925,1715523045470,-500.0,0.00012373,2]
[326863926,1715523045481,-1035.96,0.00012373,2]
[326863927,1715523045491,-1035.96,0.00012373,2]
[326863928,1715523045500,-509.10131862,0.00012373,2]
[326863929,1715523045510,-2611.06,0.00012373,2]
[326863930,1715523045520,-201799.15571609,0.00012374,2]
[326863936,1715523046110,-150094.71061607,0.00012374,2]
[326863937,1715523046120,-633.52,0.00012374,2]
[326863938,1715523046130,-27613.48,0.00012374,2]
[326863939,1715523046139,-1423.64,0.00012374,2]
[326863940,1715523046148,-2536.02,0.00012374,2]
[326863941,1715523046158,-500.0,0.00012374,2]
[326863942,1715523046167,-1582.24,0.00012374,2]
[326863943,1715523046176,-1626.96,0.00012374,2]
[326863944,1715523046185,-1221.6,0.00012374,2]
[326863945,1715523046196,-1483.05,0.00012374,2]
[326863946,1715523046207,-2960.88,0.00012374,2]
[326863947,1715523046217,-577.87,0.00012374,2]
[326863948,1715523046226,-945.87,0.00012374,2]
[326863949,1715523046236,-2077.78,0.00012374,2]
[326863950,1715523046245,-500.0,0.00012374,2]
[326863951,1715523046254,-710.92,0.00012374,2]
[326863952,1715523046263,-500.0,0.00012374,2]
[326863953,1715523046273,-1006.39,0.00012374,2]
[326863954,1715523046284,-998.57,0.00012374,2]
[326863955,1715523046294,-821.8,0.00012374,2]
[326863956,1715523046303,-500.0,0.00012374,2]
[326863957,1715523046313,-500.0,0.00012374,2]
[326863959,1715523046322,-2872.67,0.00012374,2]
[326863960,1715523046331,-1182.99,0.00012374,2]
[326863961,1715523046341,-500.0,0.00012374,2]
[326863962,1715523046350,-1919.16,0.00012374,2]
[326863963,1715523046359,-1366.87,0.00012374,2]
[326863964,1715523046368,-2219.6,0.00012374,2]
[326863965,1715523046380,-500.0,0.00012374,2]
[326863966,1715523046389,-1750.2,0.00012374,2]
[326863967,1715523046399,-1516.43,0.00012374,2]
[326863968,1715523046409,-1011.22,0.00012374,2]
[326863969,1715523046418,-1650.45,0.00012374,2]
[326863970,1715523046427,-6923.97,0.00012374,2]
[326863971,1715523046436,-8270.74,0.00012374,2]
[326863972,1715523046446,-729.78,0.00012374,2]
[326863973,1715523046455,-500.0,0.00012374,2]
[326863974,1715523046464,-12151.2,0.00012374,2]
[326863975,1715523046474,-500.0,0.00012374,2]
[326863976,1715523046483,-500.0,0.00012374,2]
[326863977,1715523046492,-850.19,0.00012374,2]
[326863978,1715523046502,-811.51,0.00012374,2]
[326863979,1715523046511,-12304.58,0.00012374,2]
[326863980,1715523046520,-1099.835152,0.00012374,2]
[326863981,1715523046530,-1035.96,0.00012374,2]
[326863982,1715523046539,-1099.835152,0.00012374,2]
[326863983,1715523046548,-500.0,0.00012375,2]
[326863984,1715523046557,-500.0,0.00012375,2]
[326863985,1715523046567,-500.0,0.00012375,2]
[326863986,1715523046576,-709.06,0.00012375,2]
[326863987,1715523046585,-500.0,0.00012375,2]
[326863988,1715523046594,-428.8,0.00012375,2]
[326863989,1715523046603,-577.86,0.00012375,2]
[326863990,1715523046613,-500.0,0.00012375,2]
[326863991,1715523046622,-500.0,0.00012375,2]
[326863992,1715523046634,-500.0,0.00012375,2]
[326863993,1715523046643,-828.44,0.00012375,2]
[326863994,1715523046653,-793.95,0.00012375,2]
[326863995,1715523046662,-500.0,0.00012375,2]
[326863996,1715523046671,-500.0,0.00012375,2]
[326863997,1715523046681,-306.56,0.00012375,2]
[326863998,1715523046690,-500.0,0.00012375,2]
[326863999,1715523046699,-533.41460286,0.00012375,2]
[326864000,1715523046709,-2677.53,0.00012375,2]
[326864001,1715523046718,-500.0,0.00012375,2]
[326864002,1715523046728,-500.0,0.00012375,2]
[326864003,1715523046737,-500.0,0.00012375,2]
[326864004,1715523046747,-1950.56,0.00012375,2]
[326864005,1715523046757,-2163.15,0.00012375,2]
[326864006,1715523046767,-500.0,0.00012375,2]
[326864007,1715523046776,-645.7,0.00012375,2]
[326864008,1715523046786,-696.93,0.00012375,2]
[326864009,1715523046795,-2699.82,0.00012375,2]
[326864010,1715523046805,-1170.57,0.00012375,2]
[326864011,1715523046815,-500.0,0.00012375,2]